Cogmind - Beta 17 @@@ ROGUE MODE // 2026.08.20 @ 16:25:42 Player: Tuja Result: Destroyed by as-54342 with Assembled Blade Performance ------------- Evolutions (0) 0 Regions Visited (0) 0 Robots Destroyed (0) 0 Value Destroyed (0) 0 Prototype IDs (0) 0 Alien Tech Used (0) 0 Bonus (0) 0 TOTAL SCORE: 0 Bonus ------- None Cogmind --------- Core Integrity 0/250 Matter 197/300 Energy 41/100 System Corruption 0% Temperature Cool (0) Movement Walking (120) Location -11/Scrapyard Parts ------- > --- POWER (1) -------- (None) > --- PROPULSION (2) --- Aluminum Leg Aluminum Leg > --- UTILITY (2) ------ Small Storage Unit > --- WEAPON (2) ------- (None) > --- INVENTORY (8) ---- Light Ion Engine Wheel Wheel Peak State ------------ > --- POWER ------------ Light Ion Engine > --- PROPULSION ------- Light Treads Light Treads > --- UTILITY ---------- Small Storage Unit > --- WEAPON ----------- EM Pulse Gun Assault Rifle > --- INVENTORY -------- (None) [Rating: 6] Favorites ----------- Power Light Ion Engine Engine Light Ion Engine Propulsion Light Treads Treads Light Treads Leg Aluminum Leg Utility Small Storage Unit Storage Small Storage Unit Weapon EM Pulse Gun Energy Gun EM Pulse Gun Ballistic Gun Assault Rifle Build | -11 ------- Run | Yrd Slots Evolved . | . Power . | . Propulsion . | . Utility . | . Weapon . | . Parts Attached 9 | 9 Power 1 | 1 Engine 1 | 1 Core . | . Reactor . | . Propulsion 4 | 4 Treads 2 | 2 Leg 2 | 2 Wheel . | . Hover . | . Flight . | . Utility 1 | 1 Device . | . Storage 1 | 1 Processor . | . Hackware . | . Protection . | . Artifact . | . Weapon 3 | 3 Energy Gun 2 | 2 Energy Cannon . | . Ballistic Gun 1 | 1 Ballistic Cannon . | . Launcher . | . Special Weapon . | . Impact Weapon . | . Slashing Weapon . | . Piercing Weapon . | . Special Melee Weapon . | . Unidentified Prototypes . | . Parts Lost 6 | 6 Power 1 | 1 Propulsion 2 | 2 Utility . | . Weapon 3 | 3 Highest Loss Streak 6 | 6 To Critical Strikes . | . Average Backups 5 | 5 Power . | . Propulsion 3 | 3 Utility . | . Weapon . | . Tool/Special . | . Unused Backups 3 | 3 Power 1 | 1 Propulsion 2 | 2 Utility . | . Weapon . | . Tool/Special . | . Average Slot Usage (%) . | . Peak Build Rating 6 | 6 Average Rating 5 | 5 On Entrance . | . Avg Prop Armor Cover (%) . | . Naked Turns . | . Heaviest Build 12 | 12 Greatest Support 40 | 40 Greatest Overweight (x) . | . Average Overweight (x) . | . Largest Inventory Capacity 8 | 8 Average Capacity 7 | 7 Most Carried 6 | 6 Average Carried 5 | 5 Final Capacity 8 | 8 Final Carried 3 | 3 Class Distribution -------------------- None Dominant Class ---------------- None Resources | -11 ----------- Run | Yrd Matter Collected 180 | 180 Remotely . | . Salvage Created 34 | 34 Parts . | . Haulers Intercepted . | . Recyclers Shooed . | . Parts Field Recycled . | . Retrieved Matter . | . Parts Self-Destructed . | . Prevented . | . Parts Restored . | . Kills | -11 ------- Run | Yrd Combat Hostiles Destroyed 2 | 2 Guns 2 | 2 Classes Destroyed 1 | 1 Assembled 2 | 2 Best Kill Streak 2 | 2 Combat Bots Only 2 | 2 Max Kills in Single Turn 1 | 1 Gunslinging . | . Exploded . | . Melee . | . Uniques/NPCs Destroyed . | . Combat | -11 -------- Run | Yrd Hostile Shots Fired 76 | 76 Missed 19 | 19 Hits 57 | 57 Melee 13 | 13 Projectile 44 | 44 Damage Taken 967 | 967 Core 272 | 272 Absorbed by Shields . | . Core Remaining (%) . | . Volleys Fired 13 | 13 Largest 2 | 2 Hottest 60 | 60 Shots Fired 20 | 20 Gun 20 | 20 Cannon . | . Launcher . | . Special . | . Kinetic 9 | 9 Thermal . | . Explosive . | . Electromagnetic 11 | 11 Robot Hit Streak 4 | 4 Robot Miss Streak 3 | 3 Penetration Max . | . Secondary Targets 1 | 1 Max Gunslinging Chain 1 | 1 Shots Hit Robots 9 | 9 Core Hits 8 | 8 Critical Kills . | . Critical Parts Destroyed . | . Critical Strikes . | . Melee Attacks . | . Impact . | . Slashing . | . Piercing . | . Sneak Attacks . | . Combat Hostiles . | . Follow-up Attacks . | . Damage Inflicted 141 | 141 Guns 140 | 140 Cannons . | . Explosions . | . Melee . | . Ramming 1 | 1 Kinetic 50 | 50 Thermal . | . Explosive . | . Electromagnetic 90 | 90 Impact . | . Slashing . | . Piercing . | . Highest Corruption . | . Average Corruption . | . Corruption Purged . | . Corruption Blocked . | . Overload Shots . | . Overflow Damage . | . Projectiles . | . Explosions . | . Melee . | . Knockbacks . | . Impact . | . Kinetic . | . Secondary . | . Self-Inflicted Damage . | . Shots . | . Rammed 1 | 1 Targets Rammed 1 | 1 Kicked . | . Crushed . | . Highest Temperature 15 | 15 Average Temperature 12 | 12 Received Heat Transfer 40 | 40 Siege Activations . | . Martial Activations . | . Shielding Activations . | . Robots Disrupted . | . Combat Hostiles . | . Robots Corrupted . | . Combat Hostiles . | . Parts Fried . | . Impact Corruptions . | . Robots Melted . | . Combat Hostiles . | . Parts Melted . | . Heat Transferred . | . Parts Sabotaged . | . Parts Stolen . | . Parts Stripped . | . Power Chain Reactions . | . Alert | -11 ------- Run | Yrd Maximum Alert Level . | . Low Security (%) 100 | 100 Level 1 . | . Level 2 . | . Level 3 . | . Level 4 . | . Level 5 . | . High Security . | . Max Security . | . Peak Influence . | . Initial . | . Average . | . Influence Increases . | . Influence Decreases . | . Squads Dispatched . | . Investigation . | . Extermination . | . Reinforcement . | . Assault . | . Garrison . | . Intercept . | . Searches Triggered . | . Construction Impeded . | . Haulers Reinforced . | . Active Scanning Responses . | . Cargo Convoy Interrupts . | . Stealth | -11 --------- Run | Yrd Distress Signals . | . Communications Jammed . | . Distress Signals . | . Times Spotted 8 | 8 Peak Tracking Total 7 | 7 Tactical Retreats . | . Traps | -11 ------- Run | Yrd Traps Triggered . | . Indirectly . | . Trap Hack Attempts . | . Triggered . | . Disarmed . | . Reprogrammed . | . Reused . | . Traps Extracted . | . Installed . | . Triggered . | . Machines | -11 ---------- Run | Yrd Machines Disabled . | . Max in Single Turn . | . Machines Repaired . | . Machines Dismantled . | . Machines Sabotaged . | . Overloaded Fab Kills . | . Hacking | -11 --------- Run | Yrd Machines Accessed . | . Terminals . | . Fabricators . | . Repair Stations . | . Recycling Units . | . Scanalyzers . | . Garrison Access . | . Total Hacks . | . Successful . | . Failed . | . Catastrophic . | . Database Lockouts . | . Manual . | . Terminals . | . Fabricators . | . Repair Stations . | . Recycling Units . | . Scanalyzers . | . Garrison Access . | . Terminal Hacks . | . Fabricator Hacks . | . Repair Station Hacks . | . Recycling Unit Hacks . | . Scanalyzer . | . Garrison Access Hacks . | . Unauthorized Hacks . | . Terminals . | . Fabricators . | . Repair Stations . | . Recycling Units . | . Scanalyzers . | . Garrison Access . | . Data Cores Recovered . | . Used . | . Hacking Detections . | . Full Trace Events . | . Feedback Events . | . Feedback Blocked . | . Robot Schematics Acquired . | . Robots Built . | . Authchips . | . Time . | . Total Robot Build Rating . | . Part Schematics Acquired . | . Parts Built . | . Authchips . | . Time . | . Total Part Build Rating . | . Part Studies Acquired . | . Parts Repaired . | . Time . | . Parts Recycled . | . Recycled Matter . | . Retrieved Matter . | . Retrieved Components . | . Parts Scanalyzed . | . Part Schematics Acquired . | . Parts Damaged . | . Bothacking | -11 ------------ Run | Yrd Used RIF Installer . | . Robots Hacked . | . Non-combat . | . Combat . | . Robot Hacks Applied . | . Relay Couplers Released . | . Fabnet Peak Effective % . | . Robots Rewired . | . Allies Hacked . | . Hacks Repelled . | . Allies | -11 -------- Run | Yrd Total Allies . | . Largest Group . | . Highest-Rated Group . | . Highest-Rated Ally . | . Total Orders . | . Ally Attacks . | . Total Damage . | . Kills . | . Allies Corrupted . | . Allies Melted . | . Intel | -11 ------- Run | Yrd Active Infowar (turns) . | . Robot Analysis Total . | . Derelict Logs Recovered . | . Drone Launches . | . Drone Recoveries . | . Exploration | -11 ------------- Run | Yrd Turns Passed 863 | 863 Spaces Moved 93 | 93 Core 3 | 3 Treads 90 | 90 Legs . | . Wheels . | . Hover . | . Flight . | . Fastest Speed 50 | 50 Average Speed 156 | 156 Slowest Speed 160 | 160 Overloaded Moves . | . Propulsion Burnouts . | . Robots Hopped . | . Potential Cave-ins . | . Cave-ins Triggered . | . Exploration Rate (%) 10 | 10 Regions Visited . Branch Regions . Pre-discovered Areas . | . Known Exits Taken . | . Unknown Exits Taken . | . Scrap Searched . | . Spaces Dug . | . Terrain Destroyed . | . Melee . | . Projectile . | . AOE . | . Terrain Rammed . | . Walls Destroyed . | . Machines Disabled . | . Actions | -11 --------- Run | Yrd Total 786 | 786 Wait 664 | 664 Move 93 | 93 Hop . | . Pick Up 6 | 6 Fast Attach 6 | 6 Attach 3 | 3 Detach . | . Swap . | . Drop . | . Fire 13 | 13 Melee . | . Ram . | . Kick . | . Crush 1 | 1 Escape Stasis . | . Rewire . | . Trap . | . Miscellaneous . | . Route ------- -11/Scrapyard (discovered 1 exit: [*Mat]) History --------- Turn | Location | Event 6 | -11/Scrapyard | Discovered new exit (range 16) 757 | -11/Scrapyard | Assembled infested the area 858 | -11/Scrapyard | Core integrity fell below 50% 862 | -11/Scrapyard | Core integrity fell below 20% 864 | -11/Scrapyard | Destroyed by as-54342 with Assembled Blade Last Messages --------------- 00436_ K-01 Serf collects debris. 00440_ T-07 Excavator is excavating. 00441_ K-01 Serf collects debris. 00444_ T-07 Excavator is excavating. 00757_ ALERT: Infestation in the scrapyard, dispatching Demolisher response squad. [Achievement: Curiosity Killed The Cat] 00835_ as-02413 destroyed. 00835_ Switching to secondary target: as-02870. 00845_ Lgt. Treads destroyed. 00845_ EM Pulse Gun destroyed. 00847_ Lgt. Ion Engine destroyed. 00849_ as-73023 misfires. 00851_ Assault Rifle destroyed. 00851_ as-23989 destroyed. 00852_ as-02870 destroyed. 00859_ EM Pulse Gun destroyed. 00860_ Slammed into as-54342. 00861_ Acquired 14 matter. 00861_ Lgt. Treads destroyed. Map ----- +----------------------------------------------------+ | ?????????????????????????????????????????????????? | | ?????????????????????????????????????????????????? | | ?????????????????????????????????????????????????? | | ?????????????????????????????????????????????????? | | ?????????????????????????????????????????????????? | | ?????????????????????????????????????????????????? | | ?????????????????????????????????????????????????? | | ?????????????????????????????????????????????????? | | ?????????????????????????????????????????????????? | | ????????????????????????????? ???????????????????? | | ????????????????????????????? ?????????????????? | | ???????????????????????????? #?????????????????? | | ???????????????????????????? ??????????????????? | | ???????????????????????????? ??????????????????? | | ????????????? ?#############% ???????????????????? | | ????????????? # " ???????????????????? | | ?????????????? ????????????????????? | | ???????????????# ????????????????????? | | ???????????????# a ?????????????????????? | | ????????????????# ?????????????????????? | | ????????????????# ??????????????????????? | | ???????????????## ??????????????????????? | | ???????????????# #??????????????????????? | | ????????????????# a #??????????????????????? | | ????????????????# a%##?????????????????????? | | ????????????????# a@ #?????????????????????? | | ????????????????# a ##?????????????????????? | | ????????????????# #??????????????????????? | | ????????????????######## #??????????????????????? | | ???????????????????????#k #??????????????????????? | | ???????????????????????# #??????????????????????? | | ???????????????????????# #??????????????????????? | | ????????????????????#### ####???????????????????? | | ???????##########???# #??????????#????????? | | ???????# #???# #?????##?? #????????? | | ???????# #???# ###### ## #????????? | | ??????## ##### #????????? | | ??????# #????????? | | ??????# ##### #????????? | | ???????# ##### < #???# #????????? | | ???????# #???# #???# ?????? | | ???????# #???##########???# #####????? | | ???????##########????????????????# ???????? | | ?????????????????????????????????# ?????? | | ?????????????????????????????????# #???? | | ?????????????????????????????????# #???? | | ?????????????????????????????????# ##???? | | ?????????????????????????????????? #????? | | ?????????????????????????????????? #????? | | ?????????????????????????????????? ????? | +----------------------------------------------------+ Best States ------------- Heat Dissipation 25 Energy Generation 10 Energy Capacity 125 Matter Stores 206 Matter Capacity 300 Sight Range 16 Terrain Scan Density 10 Evasion (%) 40 Recoil Reduction 2 Item Schematics ----------------- None Robot Schematics ------------------ None Fabricated ------------ Nothing Repaired ---------- Nothing Studied --------- None Alien Tech Used ----------------- None Achievements -------------- Curiosity Killed The Cat Challenges ------------ None Game ------ Seed ElectrostormActuatorAutogun Manual? 0 Play Time 00:04:20 Cumulative 316.8 hours Start 2026.08.20 @ 16:23:30 End 2026.08.20 @ 16:25:42 Sessions 0 Manual Loads 0 Difficulty Rogue Special Mode None Game No. 98 Rogue 71 Adventurer 27 Explorer 0 Win Type - Total 18 Types 12/1/2/1/1/0/0/0/0/1 Lore% 75 Gallery% 66 Achievement% 60 Wizard Run 0 Options --------- Layout 1 ASCII 0 Keyboard 0 Movement Numpad Keybinds 1 Fullscreen 1 Font 24/Smallcaps Map View 50x35 Zoom Use 0% Tactical HUD 1 Map Filters NONE Filters NONE Steam 1 RUN: 89135cd1-365b-4bc1-84f4-1c74c6504bbb